bitfinex/quotes_ETHUSD_20230902
["timestamp","ask_amount","ask_price","bid_price","bid_amount"]
[1693642382670,4.64685404,1633.7,1633.6,1.06716547]
[1693642382882,4.64685404,1633.7,1633.6,0.00350564]
[1693642385472,4.64685404,1633.7,1633.6,1.06716547]
[1693642385943,4.64685404,1633.7,1633.6,0.00350564]
[1693642391755,4.64685404,1633.7,1633.6,1.06716547]
[1693642391955,4.64685404,1633.7,1633.6,0.00350564]
[1693642395690,5.14005439,1633.7,1633.6,0.00350564]
[1693642404575,6.22582245,1633.7,1633.6,0.00350564]
[1693642404775,9.22582245,1633.7,1633.6,0.00350564]
[1693642405010,11.58162245,1633.7,1633.6,0.00350564]
[1693642405506,3.0,1633.6,1633.3,1.60216173]
[1693642405713,3.08185404,1633.5,1633.4,1.0638126]
[1693642406015,3.08185404,1633.5,1633.3,1.60216173]
[1693642406373,3.08185404,1633.5,1633.4,0.00352107]
[1693642406578,3.08185404,1633.5,1633.4,1.06733367]
[1693642406790,6.24372982,1633.5,1633.4,1.06733367]
[1693642406993,7.80872982,1633.5,1633.4,0.00352107]
[1693642407183,5.92144702,1633.5,1633.4,0.00352107]
[1693642408576,8.92144702,1633.5,1633.4,0.00352107]
[1693642409290,3.0,1633.4,1633.3,0.64100132]
[1693642409500,6.08185404,1633.4,1633.3,0.64100132]
[1693642410289,6.08185404,1633.4,1633.3,0.64453011]
[1693642410985,6.08185404,1633.4,1633.3,0.00352879]
[1693642426109,6.08185404,1633.4,1633.3,1.06734139]
[1693642426309,6.08185404,1633.4,1633.3,0.00352879]
[1693642442475,7.51636874,1633.4,1633.3,0.00352879]
[1693642442625,15.30567878,1633.4,1633.3,0.00352879]
[1693642443152,15.30517893,1633.4,1633.3,0.00352879]
[1693642443453,3.0,1633.2,1633.0,0.64100132]
[1693642443655,3.08185404,1633.1,1633.0,0.64100132]
[1693642444459,3.08185404,1633.1,1633.0,1.70825217]
[1693642444950,3.08185404,1633.1,1633.0,0.64427908]
[1693642445455,3.08185404,1633.1,1633.0,1.70825217]
[1693642446148,3.08185404,1633.1,1633.0,0.64427908]
[1693642447447,3.08185404,1633.1,1633.0,1.70825217]
[1693642447649,3.08185404,1633.1,1633.0,0.64427908]
[1693642447926,3.08185404,1633.1,1633.0,1.70825217]
[1693642449552,3.08185404,1633.1,1633.0,0.64427908]
[1693642450448,3.08185404,1633.1,1633.0,1.70825217]
[1693642450660,3.08185404,1633.1,1633.0,0.64427908]
[1693642451743,3.08185404,1633.1,1633.0,1.70825217]
[1693642452442,3.08185404,1633.1,1633.0,0.64427908]
[1693642453635,3.08185404,1633.1,1633.0,1.70825217]
[1693642454143,3.08185404,1633.1,1633.0,0.64427908]
[1693642456530,3.08185404,1633.1,1633.0,1.70825217]
[1693642456735,3.08185404,1633.1,1633.0,0.64427908]
[1693642470472,3.08185404,1633.1,1633.0,1.70825217]
[1693642470663,3.08185404,1633.1,1633.0,0.64427908]
[1693642471479,3.08185404,1633.1,1633.0,0.64475527]
[1693642475456,3.08185404,1633.1,1633.0,1.70873433]
[1693642475657,3.08185404,1633.1,1633.0,0.64475527]
[1693642480982,3.08185404,1633.1,1633.0,1.70873433]
[1693642481353,3.08185404,1633.1,1633.0,0.64475527]
[1693642483484,3.08185404,1633.1,1633.0,1.60697154]
[1693642484186,3.08185404,1633.1,1633.0,1.70873433]
[1693642484390,3.08185404,1633.1,1633.0,0.64475527]
[1693642484599,3.08185404,1633.1,1633.0,1.60697154]
[1693642485587,3.08185404,1633.1,1633.0,2.02947309]
[1693642485964,3.08185404,1633.1,1633.0,0.96549403]
[1693642493409,3.08185404,1633.1,1633.0,2.24844906]
[1693642494205,3.08185404,1633.1,1633.0,2.02947309]
[1693642494407,3.08185404,1633.1,1633.0,2.24844906]
[1693642499309,3.0,1633.4,1633.0,2.35021185]
[1693642499520,3.08185404,1633.3,1633.2,0.96398022]
[1693642500386,3.08185404,1633.3,1633.2,0.96724128]
[1693642502115,3.08185404,1633.3,1633.2,2.03122034]
[1693642502409,3.08185404,1633.3,1633.2,0.96724128]
[1693642504418,3.08185404,1633.3,1633.2,1.60926316]
[1693642506196,3.08185404,1633.3,1633.2,0.96724128]
[1693642506522,3.08185404,1633.3,1633.2,1.60906215]
[1693642506723,3.0,1633.4,1633.2,1.60906215]
[1693642506923,6.0,1633.6,1633.3,1.70579993]
[1693642507227,3.08185404,1633.5,1633.4,1.06397906]
[1693642507521,3.08185404,1633.5,1633.4,1.06722468]
[1693642507721,3.08185404,1633.5,1633.4,0.00324562]
[1693642508314,3.08185404,1633.5,1633.3,1.70579993]
[1693642509539,3.08185404,1633.5,1633.4,0.00324562]
[1693642510329,3.08185404,1633.5,1633.3,1.70579993]
[1693642511339,3.08185404,1633.5,1633.4,0.00324562]
[1693642512843,3.08185404,1633.5,1633.3,1.06397906]
[1693642513342,3.08185404,1633.5,1633.4,0.00324562]
[1693642513542,3.08185404,1633.5,1633.3,1.04148863]
[1693642514406,3.08185404,1633.5,1633.4,0.00338085]
[1693642516639,4.39295944,1633.5,1633.4,0.00338085]
[1693642516840,5.95795944,1633.5,1633.4,0.00338085]
[1693642517410,3.0,1633.4,1633.1,0.64182087]
[1693642517610,3.08185404,1633.3,1633.1,0.64182087]
[1693642518440,3.08185404,1633.3,1633.2,0.00313622]
[1693642518742,4.10869944,1633.3,1633.2,0.00313622]
[1693642519344,4.10869944,1633.3,1633.1,0.64182087]
[1693642520434,4.10869944,1633.3,1633.2,0.00313622]
[1693642521461,4.10869944,1633.3,1633.1,0.64182087]
[1693642522358,4.10869944,1633.3,1633.2,0.00313622]
[1693642523471,4.10869944,1633.3,1633.1,0.64182087]
[1693642524356,4.10869944,1633.3,1633.2,0.00313622]
[1693642525359,4.10869944,1633.3,1633.1,0.64182087]
[1693642526374,4.10869944,1633.3,1633.2,0.00313622]
[1693642527446,4.10869944,1633.3,1633.1,0.64182087]
[1693642528328,4.10869944,1633.3,1633.2,0.00313622]
[1693642529430,4.10869944,1633.3,1633.1,0.64182087]
[1693642530355,4.10869944,1633.3,1633.2,0.00313622]
[1693642531465,4.10869944,1633.3,1633.1,0.64182087]
[1693642532331,4.10869944,1633.3,1633.2,0.00647553]
[1693642532539,4.10869944,1633.3,1633.2,0.24647666]
[1693642533668,4.10869944,1633.3,1633.2,1.3103777]
[1693642544395,4.10869944,1633.3,1633.2,1.95219857]
[1693642547071,6.15369944,1633.3,1633.2,0.24647666]
[1693642547279,13.74562944,1633.3,1633.2,0.24647666]
[1693642547479,13.74562944,1633.3,1632.7,0.64182087]
[1693642547480,3.0,1632.9,1632.7,0.64182087]
[1693642547800,3.08185404,1632.8,1632.7,1.60580109]
[1693642548202,3.08185404,1632.8,1632.7,1.70600134]
[1693642548373,3.08185404,1632.8,1632.7,0.64808585]
[1693642549489,3.08185404,1632.8,1632.7,1.71226632]
[1693642550367,3.87877944,1632.8,1632.7,1.71226632]
[1693642555402,3.24028739,1632.8,1632.7,1.71226632]
[1693642556273,3.24028739,1632.8,1632.7,2.67624654]
[1693642557373,3.24028739,1632.8,1632.7,2.03442567]
[1693642557885,3.24028739,1632.8,1632.7,2.67552037]
[1693642558075,2.44336199,1632.8,1632.7,2.67552037]
[1693642558275,2.44336199,1632.8,1632.7,2.03442567]
[1693642558808,2.44336199,1632.8,1632.7,2.67550832]
[1693642559122,2.44336199,1632.8,1632.7,2.03442567]
[1693642559287,2.44336199,1632.8,1632.7,2.67550783]
[1693642560119,2.44336199,1632.8,1632.7,2.03442567]
[1693642560995,2.44336199,1632.8,1632.7,1.61135477]
[1693642561200,2.44336199,1632.8,1632.7,2.67553524]
[1693642562213,2.44336199,1632.8,1632.7,2.67554779]
[1693642562431,2.44336199,1632.8,1632.7,2.03442567]
[1693642562585,2.44336199,1632.8,1632.7,2.29175118]
[1693642562914,2.44336199,1632.8,1632.7,2.28945558]
[1693642566280,1.30826845,1632.8,1632.7,2.28945558]
[1693642566646,1.30826845,1632.8,1632.7,3.57172022]
[1693642567386,1.30826845,1632.8,1632.7,2.28945558]
[1693642567721,1.30826845,1632.8,1632.7,3.57172022]
[1693642568318,1.30826845,1632.8,1632.7,2.28945558]
[1693642568723,1.30826845,1632.8,1632.7,3.57172022]
[1693642570413,1.30826845,1632.8,1632.7,2.28945558]
[1693642570823,1.30826845,1632.8,1632.7,3.57172022]
[1693642571308,1.30826845,1632.8,1632.7,2.28945558]
[1693642571704,1.30826845,1632.8,1632.7,3.57172022]
[1693642572325,1.30826845,1632.8,1632.7,2.28945558]
[1693642572723,1.30826845,1632.8,1632.7,3.57172022]
[1693642573343,1.30826845,1632.8,1632.7,2.28945558]
[1693642576868,1.9278353,1632.8,1632.7,2.28945558]
[1693642577068,1.9278353,1632.8,1632.7,1.96886084]
[1693642579357,1.9278353,1632.8,1632.7,1.96259586]
[1693642579767,1.9278353,1632.8,1632.7,2.92429434]
[1693642580565,1.9278353,1632.8,1632.7,2.93055932]
[1693642586469,1.9278353,1632.8,1632.7,2.28945558]
[1693642590375,1.9278353,1632.8,1632.7,3.57172022]
[1693642590575,1.9278353,1632.8,1632.7,2.28945558]
[1693642590734,1.9278353,1632.8,1632.7,3.57172022]
[1693642590938,1.9278353,1632.8,1632.7,2.28945558]
[1693642591339,1.9278353,1632.8,1632.7,3.57372533]
[1693642591545,8.10557994,1632.8,1632.7,3.57372533]
[1693642592570,8.10557994,1632.8,1632.7,2.61002174]
[1693642594876,8.10557994,1632.8,1632.7,2.29207761]
[1693642596290,8.10557994,1632.8,1632.7,2.93493835]
[1693642597658,8.10557994,1632.8,1632.7,1.97061784]
[1693642597961,8.10557994,1632.8,1632.7,2.93493835]
[1693642598472,8.10557994,1632.8,1632.7,1.97061784]
[1693642598775,1.9278353,1632.8,1632.7,1.97061784]
[1693642601394,1.30826845,1632.8,1632.7,1.97061784]
[1693642604397,1.30826845,1632.8,1632.7,2.93493835]
[1693642613630,1.30826845,1632.8,1632.7,2.29207761]
[1693642613823,1.30826845,1632.8,1632.7,1.87070839]
[1693642613994,1.30826845,1632.8,1632.7,2.934875]
[1693642615224,1.30826845,1632.8,1632.7,2.29207761]
[1693642619495,1.30826845,1632.8,1632.7,2.61002174]
[1693642623400,1.30826845,1632.8,1632.7,2.50990691]
[1693642623601,1.30826845,1632.8,1632.7,3.57407352]
[1693642625819,3.0,1632.9,1632.7,3.57407352]
[1693642626036,6.08185404,1632.9,1632.8,1.70679661]
[1693642626652,6.08185404,1632.9,1632.8,0.64263]
[1693642627007,6.08185404,1632.9,1632.8,0.88132043]
[1693642627406,6.08185404,1632.9,1632.8,1.9514154]
[1693642628539,3.08185404,1632.9,1632.8,1.9514154]
[1693642629741,6.93610051,1633.1,1632.8,1.9514154]
[1693642629912,9.25898569,1633.0,1632.9,1.06416661]
[1693642630509,9.25898569,1633.0,1632.9,1.07008587]
[1693642631739,9.25898569,1633.0,1632.9,0.00591926]
[1693642632415,9.25898569,1633.0,1632.8,1.7067873]
[1693642632608,3.08185404,1633.0,1632.9,1.30303482]
[1693642632808,9.25923762,1633.0,1632.9,1.30303482]
[1693642633008,9.25923762,1633.0,1632.9,1.0641573]
[1693642633231,9.25923762,1633.0,1632.8,0.64263]
[1693642633432,3.08185404,1633.0,1632.8,0.64263]
[1693642633634,3.08185404,1633.0,1632.9,0.23887721]
[1693642633844,9.25923879,1633.0,1632.9,1.30303451]
[1693642634013,9.25923879,1633.0,1632.9,1.0641573]
[1693642634214,9.25923879,1633.0,1632.8,0.64263]
[1693642634416,3.08185404,1633.0,1632.8,0.64263]
[1693642634943,3.08185404,1633.0,1632.9,0.23861146]
[1693642635156,9.25923952,1633.0,1632.9,1.30276876]
[1693642635320,9.25923952,1633.0,1632.9,1.30868802]
[1693642635767,9.25923952,1633.0,1632.9,1.07007656]
[1693642635919,9.25923952,1633.0,1632.9,0.00591926]
[1693642636446,9.25923952,1633.0,1632.8,1.7067873]
[1693642636627,3.08185404,1633.0,1632.9,1.0641573]
[1693642636827,9.25924283,1633.0,1632.9,0.23887721]
[1693642637127,9.25924283,1633.0,1632.8,1.7067873]
[1693642637333,3.08185404,1633.0,1632.9,1.07007656]
[1693642637550,9.2592443,1633.0,1632.9,1.30868802]
[1693642638040,9.2592443,1633.0,1632.9,1.07007656]
[1693642638554,9.2592443,1633.0,1632.9,1.0641573]
[1693642638854,9.2592443,1633.0,1632.8,0.64263]
[1693642639156,3.08185404,1633.0,1632.8,0.64263]
[1693642639330,3.08185404,1633.0,1632.9,0.24453072]
[1693642639525,9.25924617,1633.0,1632.9,1.30868802]
[1693642639960,9.25924617,1633.0,1632.9,1.07007656]
[1693642640326,9.25924617,1633.0,1632.8,1.7067873]
[1693642640527,9.25924617,1633.0,1632.9,1.0641573]
[1693642640528,3.08185404,1633.0,1632.9,1.0641573]
[1693642640727,9.25915697,1633.0,1632.9,0.23861146]
[1693642640922,9.25915697,1633.0,1632.9,1.0641573]
[1693642641246,9.25915697,1633.0,1632.8,0.64263]
[1693642641453,3.08185404,1633.0,1632.8,0.64263]
[1693642641857,3.08185404,1633.0,1632.9,0.23861146]
[1693642642036,9.25916322,1633.0,1632.9,0.23861146]
[1693642642360,9.25916322,1633.0,1632.9,1.0641573]
[1693642642558,9.25916322,1633.0,1632.8,0.64263]
[1693642642763,3.08185404,1633.0,1632.8,0.64263]
[1693642643057,3.08185404,1633.0,1632.9,0.23861146]
[1693642643223,9.25916468,1633.0,1632.9,0.23861146]
[1693642643429,9.25916468,1633.0,1632.9,1.30868802]
[1693642651377,9.25916468,1633.0,1632.9,1.30276876]
[1693642651546,9.25916468,1633.0,1632.9,1.0641573]
[1693642651746,9.25916468,1633.0,1632.8,0.64263]
[1693642652074,3.08185404,1633.0,1632.8,0.64263]
[1693642652289,3.08185404,1633.0,1632.9,0.23862254]
[1693642652473,9.25913836,1633.0,1632.9,0.24454307]
[1693642652661,9.25913836,1633.0,1632.9,1.30870037]
[1693642652866,9.25913836,1633.0,1632.9,1.07007783]
[1693642653262,9.25913836,1633.0,1632.9,0.00592053]
[1693642653479,9.25913836,1633.0,1632.8,1.60668178]
[1693642653776,3.08185404,1633.0,1632.8,1.60668178]
[1693642654079,3.08185404,1633.0,1632.9,0.23862254]
[1693642654371,9.25912155,1633.0,1632.9,0.24454307]
[1693642654547,9.25912155,1633.0,1632.9,1.30870037]
[1693642656388,9.25912155,1633.0,1632.9,1.95133037]
[1693642685125,24.62902376,1633.0,1632.9,0.24454307]
[1693642685334,25.09411181,1633.0,1632.9,0.24454307]
[1693642685632,3.0,1632.8,1632.7,0.64263]
[1693642685925,12.25912155,1632.8,1632.7,1.06426059]
[1693642686138,13.64153371,1632.8,1632.7,0.23874724]
[1693642686343,13.64153371,1632.8,1632.7,1.30300783]
[1693642686531,13.64153371,1632.8,1632.7,1.30894274]
[1693642688844,15.20653371,1632.8,1632.7,0.24468215]
[1693642689042,18.20653371,1632.8,1632.7,0.24468215]
[1693642692814,16.64153371,1632.8,1632.7,0.24468215]
[1693642697030,16.64247975,1632.8,1632.7,0.24468215]
[1693642697755,10.4642662,1632.8,1632.7,0.24468215]
[1693642698133,16.64246657,1632.8,1632.7,0.24468215]
[1693642698655,10.4642662,1632.8,1632.7,0.24468215]
[1693642704157,10.94969272,1632.8,1632.7,0.24468215]
[1693642718785,17.12790917,1632.8,1632.7,0.24468215]
[1693642730180,17.12790917,1632.8,1632.7,1.30898488]
[1693642744019,17.12798041,1632.8,1632.7,1.30898488]
[1693642750234,17.12798271,1632.8,1632.7,1.30898488]
[1693642753539,22.20131271,1632.8,1632.7,0.24468215]
[1693642753706,22.20131271,1632.8,1632.4,0.64208335]
[1693642753707,3.0,1632.6,1632.4,0.64208335]
[1693642753904,13.82514403,1632.5,1632.4,0.64208335]
[1693642754128,3.0,1632.4,1632.3,0.64208335]
[1693642754328,15.26014403,1632.4,1632.3,1.70656797]
[1693642754840,9.08185404,1632.4,1632.3,1.70656797]
[1693642755408,10.14653944,1632.4,1632.3,1.70656797]
[1693642755732,10.14653944,1632.4,1632.3,1.06448462]
[1693642757212,10.14653944,1632.4,1632.3,1.31435131]
[1693642757542,11.71153944,1632.4,1632.3,1.31435131]
[1693642757721,18.37132304,1632.4,1632.3,0.24986669]
[1693642757921,18.37132304,1632.4,1632.2,1.24724232]
[1693642758131,4.91898634,1632.3,1632.2,1.24724232]
[1693642758330,4.91898634,1632.3,1632.2,2.31182859]
[1693642758639,4.91898634,1632.3,1632.2,1.50317023]
[1693642765439,7.91898634,1632.3,1632.2,1.50317023]
[1693642765628,8.39898634,1632.3,1632.2,1.50317023]
[1693642767838,6.08185404,1632.3,1632.2,1.50317023]
[1693642769666,6.08185404,1632.3,1632.2,2.56773917]
[1693642776670,7.64685404,1632.3,1632.2,2.56773917]
[1693642776870,7.64685404,1632.3,1632.2,1.50317023]
[1693642777039,8.12685404,1632.3,1632.2,0.25592791]
[1693642777378,9.93148187,1632.3,1632.2,0.25592791]
[1693642778072,9.93148187,1632.3,1632.2,0.00505935]
[1693642778439,3.0,1632.2,1632.1,1.06464946]
[1693642778640,10.64685404,1632.2,1632.1,1.06464946]
[1693642779467,10.64685404,1632.2,1632.1,1.06971664]
[1693642779669,12.34722223,1632.2,1632.1,1.06971664]
[1693642784754,12.34722223,1632.2,1632.1,1.71179999]
[1693642787377,12.34722223,1632.2,1632.1,1.95272565]
[1693642797770,18.52755244,1632.2,1632.1,1.95272565]
[1693642798573,18.52755244,1632.2,1632.1,2.91585068]
[1693642799707,18.52755244,1632.2,1632.1,2.27376733]
[1693642799861,18.52755244,1632.2,1632.1,2.91661167]
[1693642800995,16.82718425,1632.2,1632.1,2.91661167]
[1693642801291,12.26218425,1632.2,1632.1,3.55793404]
[1693642801479,6.08185404,1632.2,1632.1,3.55793404]
[1693642801681,6.08185404,1632.2,1632.1,2.59480901]
[1693642801885,12.26186656,1632.2,1632.1,2.59480901]
[1693642802269,12.26186656,1632.2,1632.1,3.55920055]
[1693642802597,6.08185404,1632.2,1632.1,3.55920055]
[1693642802801,9.08185404,1632.2,1632.1,3.55932338]
[1693642802970,15.26184142,1632.2,1632.1,3.55932338]
[1693642803177,15.26184142,1632.2,1632.1,2.59480901]
[1693642803675,15.26184142,1632.2,1632.1,2.49468463]
[1693642803999,15.26184142,1632.2,1632.1,3.55933409]
[1693642804691,15.26184142,1632.2,1632.1,2.27516738]
[1693642805891,9.08185404,1632.2,1632.1,2.27516738]
[1693642806601,9.08185404,1632.2,1632.1,2.91823023]
[1693642807604,9.08185404,1632.2,1632.1,1.95370515]
[1693642807971,15.26201056,1632.2,1632.1,1.95370515]
[1693642808671,15.26201056,1632.2,1632.1,1.3106423]
[1693642813886,15.26197795,1632.2,1632.1,1.3106423]
[1693642818717,15.26197795,1632.2,1632.1,1.95370515]
[1693642819985,18.35317575,1632.2,1632.1,1.3106423]
[1693642820686,18.35317575,1632.2,1632.1,1.06971664]
[1693642821114,18.35317575,1632.2,1632.1,1.29918471]
[1693642821327,18.35317575,1632.2,1632.1,0.23453525]
[1693642821328,22.94819575,1632.2,1632.1,0.23453525]
[1693642821523,28.02321575,1632.2,1632.1,0.23453525]
[1693642821829,28.02321575,1632.2,1632.1,0.00506718]
[1693642822394,28.02321575,1632.2,1632.0,0.1]
[1693642822595,15.54429952,1632.1,1632.0,0.1]
[1693642822796,20.13959952,1632.1,1632.0,0.1]
[1693642823633,15.54429952,1632.1,1632.0,0.1]
[1693642828222,20.13959952,1632.1,1632.0,0.1]
[1693642829043,21.70459952,1632.1,1632.0,0.1]
[1693642829845,17.10929952,1632.1,1632.0,0.1]
[1693642838547,26.29989952,1632.1,1632.0,0.1]
[1693642838770,31.36028757,1632.1,1632.0,0.1]
[1693642840454,31.85990425,1632.1,1632.0,0.1]
[1693642849477,31.86208337,1632.1,1632.0,0.1]
[1693642854867,32.76878192,1632.1,1632.0,0.1]
[1693642856787,27.70839387,1632.1,1632.0,0.1]
[1693642858165,32.30369387,1632.1,1632.0,0.1]
[1693642860507,12.2354723,1632.1,1632.0,0.1]
[1693642860707,9.76377375,1632.1,1632.0,0.1]
[1693642861911,13.24377375,1632.1,1632.0,0.1]
[1693642862633,12.76377375,1632.1,1632.0,0.1]
[1693642865015,17.81820012,1632.1,1632.0,0.1]
[1693642865217,22.42334803,1632.1,1632.0,0.1]
[1693642874559,17.82804803,1632.1,1632.0,0.1]
[1693642876358,22.42334803,1632.1,1632.0,0.1]
[1693642876553,17.82804803,1632.1,1632.0,0.1]
[1693642877151,17.82732461,1632.1,1632.0,0.1]
[1693642894282,17.36819824,1632.1,1632.0,0.1]
[1693642894580,14.80805033,1632.1,1632.0,0.1]
[1693642907471,12.76305033,1632.1,1632.0,0.1]
[1693642907793,9.26343365,1632.1,1632.0,1.16478208]
[1693642908192,9.26343365,1632.1,1632.0,1.47679191]
[1693642908702,9.26343365,1632.1,1632.0,1.48371606]
[1693642908862,9.26343365,1632.1,1632.0,1.17170623]
[1693642909462,9.26343365,1632.1,1632.0,1.16478208]
[1693642916310,9.26343365,1632.1,1632.0,1.16470046]
[1693642916523,3.08185404,1632.1,1632.0,1.16470046]
[1693642917404,3.08185404,1632.1,1632.0,1.47620182]
[1693642917610,3.08185404,1632.1,1632.0,1.48311438]
[1693642921525,3.08185404,1632.1,1632.0,0.41841392]
[1693642921999,9.26261051,1632.1,1632.0,0.41841392]
[1693642922387,9.26261051,1632.1,1632.0,0.1]
[1693642933933,10.83415156,1632.1,1632.0,0.1]
[1693642934133,19.99445156,1632.1,1632.0,0.1]
[1693642935009,15.39915156,1632.1,1632.0,0.1]
[1693642937345,13.82761051,1632.1,1632.0,0.1]
[1693642937549,12.26261051,1632.1,1632.0,0.1]
[1693642951655,13.82761051,1632.1,1632.0,0.1]
[1693642965667,13.82761051,1632.1,1632.0,1.16477274]
[1693642965863,13.82761051,1632.1,1632.0,0.1]
[1693642966070,15.93078156,1632.1,1632.0,0.1]
[1693642988901,14.36578156,1632.1,1632.0,0.1]
[1693642989106,12.26261051,1632.1,1632.0,0.1]
[1693642989409,12.26261051,1632.1,1632.0,1.1647675]
[1693642992026,12.26261051,1632.1,1632.0,1.47661325]
[1693642992619,12.26261051,1632.1,1632.0,1.1647675]
[1693642993715,12.26261051,1632.1,1632.0,1.47663135]
[1693642994721,12.26261051,1632.1,1632.0,1.48358836]
[1693642994915,12.26261051,1632.1,1632.0,0.41882086]
[1693642995087,12.26261051,1632.1,1632.0,0.10695701]
[1693642995306,12.26261051,1632.1,1632.0,1.17172576]
[1693642995594,12.26261051,1632.1,1632.0,1.16476875]
[1693643000496,15.56032158,1632.1,1632.0,1.16476875]
[1693643000700,15.56032158,1632.1,1632.0,0.1]
[1693643007048,16.04032158,1632.1,1632.0,0.1]
[1693643016632,20.63562158,1632.1,1632.0,0.1]
[1693643016932,25.23092158,1632.1,1632.0,0.1]
[1693643017957,29.82622158,1632.1,1632.0,0.1]
[1693643018161,25.23092158,1632.1,1632.0,0.1]
[1693643020260,29.82622158,1632.1,1632.0,0.1]
[1693643029868,30.01115118,1632.1,1632.0,0.1]
[1693643041517,39.28440048,1632.1,1632.0,0.1]
[1693643041822,30.01115118,1632.1,1632.0,0.1]
[1693643042324,39.28440403,1632.1,1632.0,0.1]
[1693643053642,30.09380403,1632.1,1632.0,0.1]
[1693643054021,30.09346322,1632.1,1632.0,0.1]
[1693643054220,30.09466704,1632.1,1632.0,0.1]
[1693643061451,34.68996704,1632.1,1632.0,0.1]
[1693643061789,30.09466704,1632.1,1632.0,0.1]
[1693643066571,14.63979471,1632.1,1632.0,0.1]
[1693643066776,20.82170982,1632.1,1632.0,0.1]
[1693643067544,30.09458248,1632.1,1632.0,0.1]
[1693643077124,34.68988248,1632.1,1632.0,0.1]
[1693643078034,30.09458248,1632.1,1632.0,0.1]
[1693643088849,23.58164181,1632.1,1632.0,0.1]
[1693643089019,13.82876915,1632.1,1632.0,0.1]
[1693643106676,12.26376915,1632.1,1632.0,0.1]
[1693643106884,9.26376915,1632.1,1632.0,0.1]
[1693643107679,9.2623499,1632.1,1632.0,1.47353716]
[1693643107881,3.08185404,1632.1,1632.0,1.47353716]
[1693643108754,3.08185404,1632.1,1632.0,1.17121955]
[1693643109649,3.08185404,1632.1,1632.0,1.16472199]
[1693643109865,3.08185404,1632.1,1632.0,1.46705106]
[1693643110791,3.08185404,1632.1,1632.0,1.47354992]
[1693643112297,3.0,1632.3,1632.0,1.47354992]
[1693643112498,3.08185404,1632.2,1632.0,0.40882793]
[1693643113195,3.0,1632.3,1632.0,0.40882793]
[1693643113397,3.08185404,1632.3,1632.0,0.40882793]
[1693643116265,35.91,1632.6,1632.1,1.06460143]
[1693643116502,12.26182641,1632.5,1632.1,1.06460143]
[1693643116802,6.08185404,1632.5,1632.1,2.60029231]
[1693643116991,6.08185404,1632.5,1632.1,1.53569088]
[1693643117373,6.08185404,1632.5,1632.2,0.3010392]
[1693643117772,6.08185404,1632.5,1632.1,1.53569088]
[1693643118799,6.08185404,1632.5,1632.2,1.06457545]
[1693643118967,6.08185404,1632.5,1632.1,1.53569088]
[1693643119666,6.08185404,1632.5,1632.2,1.06458887]
[1693643120567,6.08185404,1632.5,1632.3,0.00646187]
[1693643121487,6.08185404,1632.5,1632.1,2.17258543]
[1693643121691,6.08185404,1632.5,1632.2,1.06459035]
[1693643123079,7.91455404,1632.5,1632.2,1.06459035]
[1693643124519,7.91455404,1632.5,1632.3,0.00646187]
[1693643125520,7.91455404,1632.5,1632.1,2.17258543]
[1693643125808,7.91455404,1632.5,1632.2,1.06459099]
[1693643126514,7.91455404,1632.5,1632.3,0.00646187]
[1693643127278,9.51387247,1632.5,1632.3,0.00646187]
[1693643127482,2.02406274,1632.4,1632.1,0.64338543]
[1693643127720,4.64685404,1632.3,1632.1,1.70802351]
[1693643127924,4.64685404,1632.3,1632.2,0.3010993]
[1693643128219,4.64685404,1632.3,1632.2,1.06463808]
[1693643128519,4.64685404,1632.3,1632.2,1.07110794]
[1693643129104,5.34660572,1632.3,1632.2,1.07110794]
[1693643129294,8.34660572,1632.3,1632.2,0.00646986]
[1693643129697,10.62320572,1632.3,1632.2,0.00646986]
[1693643130625,10.62320572,1632.3,1632.0,3.66856358]
[1693643130801,9.92345404,1632.3,1632.1,1.0646711]
[1693643131118,9.92345404,1632.3,1632.1,1.36578054]
[1693643131318,9.92345404,1632.3,1632.1,0.30110944]
[1693643131483,9.92345404,1632.3,1632.2,0.00646986]
[1693643132634,9.92345404,1632.3,1632.0,3.66856358]
[1693643132916,9.92345404,1632.3,1632.1,1.06466973]
[1693643133135,9.92345404,1632.3,1632.1,1.49180446]
[1693643133315,9.92345404,1632.3,1632.1,0.42713473]
[1693643133494,9.92345404,1632.3,1632.2,0.0082208]
[1693643133918,16.10383086,1632.3,1632.2,1.07288833]
[1693643134287,16.10383086,1632.3,1632.2,0.0082208]
[1693643134489,18.24928022,1632.3,1632.2,1.06466715]
[1693643134812,18.24928022,1632.3,1632.1,1.70805258]
[1693643135019,11.84375404,1632.3,1632.1,1.70805258]
[1693643135188,11.84375404,1632.3,1632.2,0.4270568]
[1693643135389,18.02414386,1632.3,1632.2,1.49172395]
[1693643135590,18.02414386,1632.3,1632.2,1.06466715]
[1693643136389,18.02414386,1632.3,1632.0,1.70846358]
[1693643136588,11.84375404,1632.3,1632.2,0.4270568]
[1693643136817,19.55444048,1632.3,1632.2,0.4270568]
[1693643137030,17.63414048,1632.3,1632.0,1.70846358]
[1693643137240,9.92345404,1632.3,1632.1,1.06467197]
[1693643137399,11.78685404,1632.3,1632.1,1.4918067]
[1693643137603,11.78685404,1632.3,1632.1,0.43536362]
[1693643145318,6.18040448,1632.2,1632.1,0.43536362]
[1693643145519,9.26225852,1632.2,1632.1,0.43536362]
[1693643145822,9.26225852,1632.2,1632.1,1.50007926]
[1693643146220,9.26225852,1632.2,1632.1,0.43536362]
[1693643146645,11.91892139,1632.2,1632.1,0.43536362]
[1693643147064,17.91892139,1632.2,1632.1,0.43536362]
[1693643147368,17.91892139,1632.2,1632.1,0.00822889]
[1693643147548,17.91892139,1632.2,1632.0,0.1]
[1693643147728,12.26225852,1632.1,1632.0,0.1]
[1693643147925,14.35415066,1632.1,1632.0,0.1]
[1693643148342,14.35415066,1632.1,1632.0,0.52723811]
[1693643148620,14.35415066,1632.1,1632.0,0.1081627]
[1693643148845,14.35415066,1632.1,1632.0,0.53540081]
[1693643151924,15.91915066,1632.1,1632.0,0.53540081]
[1693643152125,15.91915066,1632.1,1632.0,0.1081627]
[1693643152572,15.91915066,1632.1,1632.0,0.1]
[1693643155231,20.51445066,1632.1,1632.0,0.1]
[1693643160164,20.51538124,1632.1,1632.0,0.1]
[1693643164570,20.51538124,1632.1,1632.0,3.2]
[1693643168760,25.11068124,1632.1,1632.0,3.2]
[1693643168963,25.59068124,1632.1,1632.0,3.2]
[1693643169682,26.04974398,1632.1,1632.0,3.2]
[1693643170898,30.64504398,1632.1,1632.0,2.15]
[1693643171105,30.64504398,1632.1,1632.0,1.37734375]
[1693643171796,3.45906274,1632.0,1631.9,0.1]
[1693643171949,35.99532952,1632.0,1631.9,0.1]
[1693643173391,44.8999111,1632.0,1631.9,0.1]
[1693643173687,35.99532952,1632.0,1631.9,0.1]
[1693643177890,35.99532952,1632.0,1631.9,3.2]
[1693643179286,35.99532952,1632.0,1631.9,0.1]
[1693643184110,35.99681613,1632.0,1631.9,0.1]
[1693643184415,36.48355926,1632.0,1631.9,0.1]